fUSD/lending_fUSD_20260628
["ID","MTS","AMOUNT","RATE_DAILY","PERIOD"]
[426575472,1782617446000,-1083.33333,0.00029,2]
[426575471,1782617446000,-316.196,0.00029,10]
[426575464,1782617446000,-7480.43620762,0.00029,2]
[426575494,1782617447000,-169.72,0.00029253,2]
[426575489,1782617447000,-2126.43867127,0.00029094,2]
[426575488,1782617447000,-503.13679247,0.00029092,2]
[426575491,1782617447000,-952.07500025,0.0002912,2]
[426575490,1782617447000,-1628.48033534,0.00029095,2]
[426575496,1782617447000,-177.73093246,0.00029315,2]
[426575495,1782617447000,-2126.43867127,0.00029276,2]
[426575497,1782617447000,-151.0,0.00029324,7]
[426575487,1782617447000,-530.19,0.00029079,2]
[426575498,1782617447000,-952.07500025,0.00029327,2]
[426575493,1782617447000,-564.72946764,0.00029237,2]
[426575486,1782617447000,-644.53,0.00029068,2]
[426575492,1782617447000,-503.13679247,0.00029138,2]
[426575484,1782617447000,-482.58,0.00029068,2]
[426575483,1782617447000,-151.77,0.00029068,2]
[426575482,1782617447000,-151.0,0.00029068,2]
[426575480,1782617447000,-151.56,0.00029068,2]
[426575476,1782617447000,-228.23812322,0.00029054,7]
[426575475,1782617447000,-1628.48033534,0.0002904,2]
[426575479,1782617447000,-644.45,0.00029068,2]
[426575478,1782617447000,-151.0,0.00029068,2]
[426575477,1782617447000,-151.0,0.00029068,2]
[426575474,1782617447000,-1083.33334,0.00029,2]
[426575473,1782617447000,-1083.33333,0.00029,2]
[426575485,1782617447000,-151.0,0.00029068,2]
[426575503,1782617447000,-4200.0,0.000295,10]
[426575481,1782617447000,-151.0,0.00029068,2]
[426575499,1782617447000,-556.87968346,0.00029344,2]
[426575526,1782617447000,-500.0,0.00029703,2]
[426575521,1782617447000,-8400.0,0.000297,10]
[426575518,1782617447000,-185.95384,0.00029666,2]
[426575520,1782617447000,-198.0,0.00029686,2]
[426575522,1782617447000,-4298.60142937,0.00029703,2]
[426575524,1782617447000,-431.885,0.00029703,2]
[426575516,1782617447000,-161.0,0.0002965,30]
[426575523,1782617447000,-1744.12935004,0.00029703,2]
[426575519,1782617447000,-497.64959481,0.00029682,18]
[426575527,1782617447000,-1075.0,0.00029703,2]
[426575517,1782617447000,-151.0,0.0002965,30]
[426575513,1782617447000,-2126.43867127,0.00029638,2]
[426575525,1782617447000,-1180.95304529,0.00029703,2]
[426575515,1782617447000,-153.0,0.0002965,30]
[426575514,1782617447000,-157.0,0.0002965,30]
[426575504,1782617447000,-1503.323002,0.000295,2]
[426575500,1782617447000,-956.24280159,0.00029389,2]
[426575501,1782617447000,-2100.0,0.000294,10]
[426575505,1782617447000,-676.03287322,0.00029502,2]
[426575506,1782617447000,-2238.4021063,0.00029508,2]
[426575502,1782617447000,-2126.43867127,0.00029457,2]
[426575508,1782617447000,-187.1255371,0.00029589,2]
[426575512,1782617447000,-956.24280159,0.00029633,2]
[426575511,1782617447000,-570.0,0.00029612,2]
[426575507,1782617447000,-956.24280159,0.00029511,2]
[426575509,1782617447000,-6300.0,0.000296,10]
[426575510,1782617447000,-160.0,0.000296,10]
[426575531,1782617495000,794159.6634,0.00022462,120]
[426575532,1782617506000,152.0,0.0002912,120]
[426575535,1782617507000,157.86015524,0.0002912,120]
[426575534,1782617507000,152.0,0.0002912,120]
[426575533,1782617507000,152.0,0.0002912,120]
[426575537,1782617584000,500.0,0.00026591,120]
[426575538,1782617587000,2199.6538998,0.000373,120]
[426575539,1782617590000,692443.9048,0.0002902,120]
[426575540,1782617622000,-409.0,0.00024174,2]
[426575541,1782617645000,1255413.7895,0.0002902,120]
[426575543,1782617679000,500.0,0.000373,120]
[426575544,1782617679000,500.0,0.000373,120]
[426575547,1782617680000,500.0,0.000373,120]
[426575546,1782617680000,500.0,0.000373,120]
[426575545,1782617680000,500.0,0.000373,120]
[426575548,1782617681000,500.0,0.000373,120]
[426575549,1782617681000,228.99799151,0.000373,120]
[426575550,1782617770000,8382.63,0.00031507,120]
[426575551,1782617855000,209.04,0.00027187,120]
[426575554,1782617979000,-159.89,0.00022211,2]
[426575555,1782617993000,844.89,0.00037325,120]
[426575557,1782618072000,215.8890979,0.0002937,120]
[426575558,1782618075000,500.0,0.00028899,120]
[426575559,1782618076000,500.0,0.00028999,120]
[426575560,1782618153000,968.499637,0.00037325,120]
[426575563,1782618337000,500.0,0.0002937,120]
[426575564,1782618337000,500.0,0.0002937,120]
[426575562,1782618337000,-150.0,0.00022349,2]
[426575566,1782618430000,-250.51868694,0.00022578,2]
[426575575,1782618449000,-405.0,0.00023173,2]
[426575574,1782618449000,-150.0,0.00023051,2]
[426575576,1782618449000,-341.82591227,0.00023174,2]
[426575573,1782618449000,-397.0,0.0002293,2]
[426575572,1782618449000,-216.54711319,0.00022839,2]
[426575569,1782618449000,-250.0,0.00022676,2]
[426575571,1782618449000,-150.0,0.00022825,2]
[426575568,1782618449000,-250.0,0.000226,2]
[426575567,1782618449000,-149.48131306,0.00022578,2]
[426575570,1782618449000,-401.0,0.00022724,2]
[426575578,1782618509000,521.79786932,0.0002937,120]
[426575579,1782618531000,500.0,0.0002937,120]
[426575580,1782618531000,360.53133939,0.0002937,120]
[426575581,1782618572000,-5864.74,0.00021273,2]
[426575582,1782618606000,500.0,0.0002937,120]
[426575583,1782618606000,500.0,0.0002937,120]
[426575609,1782618632000,-9999.99,0.00025974,2]
[426575608,1782618632000,-9658.16,0.00025974,2]
[426575611,1782618632000,-5692.69,0.00026623,2]
[426575610,1782618632000,-159.15854225,0.00026303,14]
[426575607,1782618632000,-9999.99,0.00025974,2]
[426575600,1782618632000,-399.0,0.00024174,2]
[426575604,1782618632000,-174.51429462,0.00025623,2]
[426575605,1782618632000,-166.66,0.00025974,30]
[426575606,1782618632000,-3054.71,0.00025974,2]
[426575603,1782618632000,-217.85018721,0.00025623,2]
[426575612,1782618632000,-1145.8,0.00026623,2]
[426575602,1782618632000,-274.16,0.00024842,3]
[426575598,1782618632000,-406.0,0.00024174,2]
[426575597,1782618632000,-408.0,0.00024174,2]
[426575592,1782618632000,-405.0,0.00023617,2]
[426575599,1782618632000,-399.0,0.00024174,2]
[426575596,1782618632000,-405.0,0.00024174,2]
[426575595,1782618632000,-412.0,0.00024174,2]
[426575594,1782618632000,-266.49238434,0.00024174,2]
[426575593,1782618632000,-137.50761566,0.00024174,2]
[426575590,1782618632000,-905.94527115,0.00023174,2]
[426575588,1782618632000,-216.54711319,0.00023173,2]
[426575591,1782618632000,-397.0,0.00023219,2]
[426575589,1782618632000,-408.0,0.00023174,2]
[426575586,1782618632000,-170.0,0.00023173,2]
[426575587,1782618632000,-830.0,0.00023173,2]
[426575585,1782618632000,-150.0,0.00022223,2]
[426575613,1782618632000,-280.7745342,0.00026803,14]
[426575601,1782618632000,-250.0,0.00024835,2]
[426575616,1782618632000,-6338.21,0.00027074,2]
[426575614,1782618632000,-420.02191113,0.00026803,14]
[426575642,1782618632000,-500.0,0.00028246,2]
[426575618,1782618632000,-150.0,0.00027213,2]
[426575646,1782618632000,-304.202,0.00028472,2]
[426575648,1782618632000,-500.0,0.0002857,2]
[426575644,1782618632000,-151.0,0.00028246,2]
[426575645,1782618632000,-4344.7286,0.00028472,2]
[426575647,1782618632000,-500.0,0.0002852,2]
[426575643,1782618632000,-151.0,0.00028246,2]
[426575641,1782618632000,-482.19,0.00028246,2]
[426575639,1782618632000,-181.51,0.0002816,2]
[426575640,1782618632000,-647.4295,0.00028218,2]
[426575638,1782618632000,-168.67,0.00028136,2]
[426575634,1782618632000,-3649.0,0.00028121,2]
[426575635,1782618632000,-6086.0,0.00028121,2]
[426575632,1782618632000,-151.7640228,0.00028121,7]
[426575631,1782618632000,-405.0,0.00028121,2]
[426575636,1782618632000,-160.0,0.0002813,2]
[426575630,1782618632000,-413.0,0.00028121,2]
[426575617,1782618632000,-260.97,0.00027095,2]
[426575615,1782618632000,-568.2996,0.00026803,14]
[426575620,1782618632000,-178.08813796,0.00027223,2]
[426575619,1782618632000,-434.64,0.00027214,2]
[426575637,1782618632000,-160.0,0.0002813,2]
[426575624,1782618632000,-19320.13,0.00027416,2]
[426575622,1782618632000,-1145.8,0.00027288,2]
[426575623,1782618632000,-166.66,0.00027342,30]
[426575625,1782618632000,-5000.0,0.00027434,2]
[426575627,1782618632000,-500.0,0.000275,7]
[426575628,1782618632000,-1145.8,0.00027954,2]
[426575626,1782618632000,-150.0,0.00027459,2]
[426575629,1782618632000,-500.0,0.00028021,2]
[426575633,1782618632000,-3564.0,0.00028121,2]
[426575680,1782618633000,-3558.56195019,0.00029235,2]
[426575665,1782618633000,-166.66,0.00028709,30]
[426575667,1782618633000,-500.0,0.00028794,2]
[426575672,1782618633000,-500.0,0.00029,2]
[426575676,1782618633000,-151.0,0.00029068,2]
[426575686,1782618633000,-500.0,0.0002924,7]
[426575671,1782618633000,-200.0,0.00028967,2]
[426575675,1782618633000,-500.0,0.00029068,2]
[426575688,1782618633000,-334.52363922,0.0002924,7]
[426575685,1782618633000,-500.0,0.0002924,7]
[426575682,1782618633000,-500.0,0.0002924,7]
[426575678,1782618633000,-53291.0,0.0002912,20]
[426575677,1782618633000,-253.16,0.00029068,2]
[426575679,1782618633000,-3558.5619502,0.00029139,2]
[426575683,1782618633000,-500.0,0.0002924,7]
[426575691,1782618633000,-260.00373992,0.00029315,2]
[426575669,1782618633000,-1301.12264038,0.000289,2]
[426575681,1782618633000,-500.0,0.0002924,7]
[426575666,1782618633000,-4045.51577014,0.00028709,2]
[426575652,1782618633000,-500.0,0.0002857,2]
[426575670,1782618633000,-2100.0,0.000289,10]
[426575650,1782618633000,-500.0,0.0002857,2]
[426575649,1782618633000,-500.0,0.0002857,2]
[426575651,1782618633000,-500.0,0.0002857,2]
[426575653,1782618633000,-500.0,0.0002857,2]
[426575690,1782618633000,-1158.4469305,0.0002929,2]
[426575662,1782618633000,-169.001,0.00028658,20]
[426575657,1782618633000,-1145.8,0.00028619,2]
[426575654,1782618633000,-500.0,0.0002857,2]
[426575668,1782618633000,-1000.0,0.000288,10]
[426575659,1782618633000,-156.0,0.0002865,30]
[426575660,1782618633000,-153.0,0.0002865,30]
[426575655,1782618633000,-500.0,0.0002857,2]
[426575658,1782618633000,-703.0068191,0.00028647,2]
[426575661,1782618633000,-165.0,0.0002865,30]
[426575663,1782618633000,-3129.936,0.00028658,20]
[426575664,1782618633000,-152.0,0.00028663,30]
[426575673,1782618633000,-162.94,0.00029,2]
[426575674,1782618633000,-151.0,0.00029068,2]
[426575656,1782618633000,-12199.2,0.00028571,2]
[426575692,1782618633000,-471.98532831,0.00029315,2]
[426575689,1782618633000,-1145.8,0.00029285,2]
[426575695,1782618633000,-500.0,0.00029315,2]
[426575719,1782618633000,-345.836387,0.00029316,7]
[426575718,1782618633000,-345.836387,0.00029316,7]
[426575720,1782618633000,-151.0,0.00029316,7]
[426575717,1782618633000,-345.836387,0.00029316,7]
[426575721,1782618633000,-151.0,0.00029316,7]
[426575729,1782618633000,-500.0,0.0002937,2]
[426575722,1782618633000,-3558.56195019,0.0002933,2]
[426575724,1782618633000,-500.0,0.0002937,7]
[426575714,1782618633000,-151.0,0.00029316,7]
[426575732,1782618633000,-54686.33195207,0.00029371,2]
[426575725,1782618633000,-500.0,0.0002937,7]
[426575723,1782618633000,-288.66685276,0.0002937,10]
[426575730,1782618633000,-300.0,0.0002937,10]
[426575727,1782618633000,-518.41064345,0.0002937,7]
[426575728,1782618633000,-500.0,0.0002937,2]
[426575696,1782618633000,-500.0,0.00029315,2]
[426575733,1782618633000,-500.0,0.0002857,2]
[426575734,1782618633000,-367.53529897,0.0002857,2]
[426575726,1782618633000,-500.0,0.0002937,7]
[426575716,1782618633000,-345.836387,0.00029316,7]
[426575731,1782618633000,-666.0,0.0002937,10]
[426575713,1782618633000,-151.0,0.00029316,7]
[426575694,1782618633000,-500.0,0.00029315,2]
[426575693,1782618633000,-500.0,0.00029315,2]
[426575698,1782618633000,-500.0,0.00029315,2]
[426575708,1782618633000,-1649.1714924,0.00029316,2]
[426575715,1782618633000,-151.0,0.00029316,7]
[426575701,1782618633000,-500.0,0.00029315,2]
[426575699,1782618633000,-500.0,0.00029315,2]
[426575700,1782618633000,-500.0,0.00029315,2]
[426575704,1782618633000,-500.0,0.00029315,2]
[426575697,1782618633000,-458.58512233,0.00029315,2]
[426575706,1782618633000,-1800.24904958,0.00029315,2]
[426575702,1782618633000,-500.0,0.00029315,2]
[426575707,1782618633000,-266.48096118,0.00029315,2]
[426575705,1782618633000,-182.81455481,0.00029315,29]
[426575709,1782618633000,-5374.7261079,0.00029316,2]
[426575711,1782618633000,-83745.43351108,0.00029316,2]
[426575712,1782618633000,-66163.07945572,0.00029316,2]
[426575710,1782618633000,-34456.8106138,0.00029316,2]
[426575703,1782618633000,-206.10688355,0.00029315,2]
[426575748,1782618638000,-422.23745299,0.0002857,2]
[426575749,1782618638000,-77.76254701,0.0002857,2]
[426575745,1782618638000,-500.0,0.0002857,2]
[426575744,1782618638000,-500.0,0.0002857,2]
[426575741,1782618638000,-500.0,0.0002857,2]
[426575743,1782618638000,-500.0,0.0002857,2]
[426575742,1782618638000,-500.0,0.0002857,2]
[426575740,1782618638000,-132.46470103,0.0002857,2]
[426575746,1782618638000,-500.0,0.0002857,2]
[426575750,1782618638000,-500.0,0.0002857,2]
[426575752,1782618638000,-279.46924798,0.0002857,2]
[426575751,1782618638000,-500.0,0.0002857,2]
[426575747,1782618638000,-500.0,0.0002857,2]
[426575756,1782618638000,-1534.84276761,0.00029371,2]
[426575758,1782618638000,-508.97525435,0.00029371,2]
[426575755,1782618638000,-220.21,0.00029361,10]
[426575760,1782618638000,-4441.28230824,0.00029371,2]
[426575759,1782618638000,-25580.82544814,0.00029371,2]
[426575757,1782618638000,-2826.33,0.00029371,2]
[426575753,1782618638000,-500.0,0.0002857,2]
[426575754,1782618638000,-500.0,0.0002857,2]
[426575797,1782618641000,-151.0,0.00029415,7]
[426575790,1782618641000,-1392.0,0.00029415,5]
[426575791,1782618641000,-1500.0,0.00029415,5]
[426575789,1782618641000,-500.0,0.00029414,2]
[426575794,1782618641000,-629891.7023336,0.00029415,2]
[426575796,1782618641000,-250.488563,0.00029415,7]
[426575798,1782618641000,-151.0,0.00029415,7]
[426575795,1782618641000,-151.0,0.00029415,7]
[426575801,1782618641000,-345.836387,0.00029415,7]
[426575800,1782618641000,-151.0,0.00029415,7]
[426575799,1782618641000,-151.0,0.00029415,7]
[426575804,1782618641000,-345.836387,0.00029415,7]
[426575803,1782618641000,-345.836387,0.00029415,7]
[426575808,1782618641000,-3558.56195019,0.00029522,2]
[426575793,1782618641000,-14096.9004392,0.00029415,2]
[426575802,1782618641000,-345.836387,0.00029415,7]
[426575792,1782618641000,-3226.1176519,0.00029415,2]
[426575814,1782618641000,-494.0,0.00029631,2]
[426575787,1782618641000,-300.0,0.00029414,10]
[426575771,1782618641000,-763.95,0.00029371,2]
[426575770,1782618641000,-556.7567977,0.00029371,2]
[426575772,1782618641000,-231549.20369209,0.00029371,2]
[426575773,1782618641000,-151.0,0.00029371,7]
[426575774,1782618641000,-151.0,0.00029371,7]
[426575782,1782618641000,-151.0,0.00029371,7]
[426575779,1782618641000,-345.836387,0.00029371,7]
[426575786,1782618641000,-670.61826455,0.00029414,10]
[426575775,1782618641000,-151.0,0.00029371,7]
[426575778,1782618641000,-345.836387,0.00029371,7]
[426575777,1782618641000,-151.0,0.00029371,7]
[426575780,1782618641000,-345.836387,0.00029371,7]
[426575784,1782618641000,-350.0,0.0002941,2]
[426575783,1782618641000,-424.16140099,0.00029405,2]
[426575785,1782618641000,-300.0,0.00029414,10]
[426575788,1782618641000,-500.0,0.00029414,2]
[426575776,1782618641000,-151.0,0.00029371,7]
[426575811,1782618641000,-3100.0,0.000296,10]
[426575781,1782618641000,-345.836387,0.00029371,7]
[426575809,1782618641000,-748.65972781,0.00029562,2]
[426575833,1782618641000,-345.836387,0.00029899,7]
[426575837,1782618641000,-171.473248,0.00029899,7]
[426575840,1782618641000,-2000.0,0.000299,2]
[426575831,1782618641000,-4960.9915,0.00029809,2]
[426575836,1782618641000,-345.836387,0.00029899,7]
[426575830,1782618641000,-3558.56195019,0.00029809,2]
[426575845,1782618641000,-1611.12265556,0.000299,2]
[426575829,1782618641000,-5200.0,0.000298,10]
[426575838,1782618641000,-35594.37724823,0.000299,2]
[426575832,1782618641000,-151.0,0.00029899,7]
[426575835,1782618641000,-345.836387,0.00029899,7]
[426575839,1782618641000,-18414.0006,0.000299,2]
[426575843,1782618641000,-151.0,0.000299,7]
[426575842,1782618641000,-151.0,0.000299,7]
[426575844,1782618641000,-1000.0,0.000299,10]
[426575807,1782618641000,-214.4980281,0.00029441,2]
[426575834,1782618641000,-345.836387,0.00029899,7]
[426575824,1782618641000,-1738.0,0.00029715,5]
[426575841,1782618641000,-190.997558,0.000299,7]
[426575825,1782618641000,-3351.7340072,0.00029718,2]
[426575823,1782618641000,-3558.56195019,0.00029713,2]
[426575805,1782618641000,-151.0,0.00029415,7]
[426575812,1782618641000,-2311.93195799,0.00029604,2]
[426575813,1782618641000,-3558.56195019,0.00029617,2]
[426575815,1782618641000,-156.0,0.0002965,30]
[426575810,1782618641000,-500.0,0.00029599,2]
[426575817,1782618641000,-165.0,0.0002965,30]
[426575828,1782618641000,-197.18852701,0.000298,2]
[426575806,1782618641000,-3558.56195019,0.00029426,2]
[426575819,1782618641000,-266.48096118,0.00029658,2]
[426575818,1782618641000,-381.22436032,0.00029656,2]
[426575816,1782618641000,-153.0,0.0002965,30]
[426575821,1782618641000,-150.0,0.000297,10]
[426575826,1782618641000,-2394.9263852,0.00029794,2]
[426575820,1782618641000,-152.0,0.00029663,30]
[426575827,1782618641000,-151.0,0.00029797,7]
[426575822,1782618641000,-4200.0,0.000297,10]
[426575888,1782618642000,-20330.44551569,0.0003,2]
[426575880,1782618642000,-242.43487129,0.0002999,2]
[426575887,1782618642000,-273.45546805,0.0003,2]
[426575885,1782618642000,-63000.18462078,0.0003,2]
[426575881,1782618642000,-747.8729458,0.00029999,2]
[426575879,1782618642000,-1550.69444983,0.00029979,2]
[426575882,1782618642000,-500.0,0.00029999,2]
[426575875,1782618642000,-3145.4436525,0.00029931,2]
[426575870,1782618642000,-345.836387,0.00029921,7]
[426575889,1782618642000,-1116.98976886,0.0003,2]
[426575874,1782618642000,-251.25301406,0.0002993,10]
[426575883,1782618642000,-500.0,0.00029999,2]
[426575884,1782618642000,-253.90133208,0.0003,2]
[426575893,1782618642000,-1000.0,0.0003,2]
[426575890,1782618642000,-10383.25055978,0.0003,2]
[426575892,1782618642000,-1859.183708,0.0003,2]
[426575903,1782618642000,-165.16,0.0003,10]
[426575902,1782618642000,-95150.0,0.0003,5]
[426575891,1782618642000,-1129.16160071,0.0003,2]
[426575894,1782618642000,-166.73885369,0.0003,2]
[426575895,1782618642000,-14615.61916727,0.0003,2]
[426575896,1782618642000,-16907.18972924,0.0003,2]
[426575901,1782618642000,-5069.02862504,0.0003,2]
[426575899,1782618642000,-218.059999,0.0003,11]
[426575898,1782618642000,-200.0,0.0003,11]
[426575873,1782618642000,-71947.9850475,0.00029921,2]
[426575886,1782618642000,-275.90171061,0.0003,2]
[426575872,1782618642000,-345.836395,0.00029921,7]
[426575865,1782618642000,-41137.4641763,0.00029909,2]
[426575871,1782618642000,-345.836387,0.00029921,7]
[426575846,1782618642000,-1611.1226554,0.000299,2]
[426575853,1782618642000,-1611.1226554,0.000299,2]
[426575847,1782618642000,-1611.1226554,0.000299,2]
[426575851,1782618642000,-1611.1226554,0.000299,2]
[426575850,1782618642000,-1611.1226554,0.000299,2]
[426575849,1782618642000,-1611.1226554,0.000299,2]
[426575848,1782618642000,-1611.1226554,0.000299,2]
[426575852,1782618642000,-1611.1226554,0.000299,2]
[426575854,1782618642000,-1611.1226554,0.000299,2]
[426575897,1782618642000,-2164.84379324,0.0003,10]
[426575857,1782618642000,-1611.1226554,0.000299,2]
[426575855,1782618642000,-1611.1226554,0.000299,2]
[426575876,1782618642000,-140547.8364178,0.00029931,2]
[426575856,1782618642000,-1611.1226554,0.000299,2]
[426575861,1782618642000,-1611.1226554,0.000299,2]
[426575858,1782618642000,-1611.1226554,0.000299,2]
[426575860,1782618642000,-1611.1226554,0.000299,2]
[426575863,1782618642000,-3558.56195019,0.00029904,2]
[426575864,1782618642000,-1199.2634972,0.00029909,2]
[426575862,1782618642000,-1611.1226554,0.000299,2]
[426575866,1782618642000,-5622.67783823,0.00029919,2]
[426575867,1782618642000,-500.0,0.0002992,2]
[426575877,1782618642000,-1611.1226554,0.00029949,2]
[426575878,1782618642000,-22192.0,0.00029973,2]
[426575868,1782618642000,-151.0,0.00029921,7]
[426575869,1782618642000,-345.836387,0.00029921,7]
[426575859,1782618642000,-1611.1226554,0.000299,2]
[426575900,1782618642000,-159.77639538,0.0003,2]
[426575907,1782618642000,-178.93,0.0003,2]
[426575905,1782618642000,-190.98,0.0003,5]
[426575938,1782618642000,-53291.0,0.0003008,20]
[426575948,1782618642000,-500.0,0.00030099,2]
[426575949,1782618642000,-500.0,0.00030099,2]
[426575937,1782618642000,-903.06096998,0.00030065,2]
[426575941,1782618642000,-424.16140099,0.0003009,2]
[426575939,1782618642000,-180.19410617,0.00030083,60]
[426575940,1782618642000,-424.16140099,0.0003009,2]
[426575944,1782618642000,-500.0,0.00030099,2]
[426575947,1782618642000,-500.0,0.00030099,2]
[426575904,1782618642000,-4186.0,0.0003,3]
[426575943,1782618642000,-500.0,0.00030099,2]
[426575945,1782618642000,-500.0,0.00030099,2]
[426575946,1782618642000,-500.0,0.00030099,2]
[426575950,1782618642000,-500.0,0.00030099,2]
[426575953,1782618642000,-500.0,0.00030099,2]
[426575951,1782618642000,-500.0,0.00030099,2]
[426575952,1782618642000,-500.0,0.00030099,2]
[426575956,1782618642000,-500.0,0.00030099,2]
[426575954,1782618642000,-500.0,0.00030099,2]
[426575960,1782618642000,-500.0,0.00030099,2]
[426575955,1782618642000,-500.0,0.00030099,2]
[426575958,1782618642000,-500.0,0.00030099,2]
[426575959,1782618642000,-500.0,0.00030099,2]
[426575957,1782618642000,-500.0,0.00030099,2]
[426575962,1782618642000,-500.0,0.00030099,2]
[426575961,1782618642000,-500.0,0.00030099,2]
[426575963,1782618642000,-500.0,0.00030099,2]
[426575936,1782618642000,-567.5610928,0.00030051,2]
[426575929,1782618642000,-266.48096118,0.0003,2]
[426575942,1782618642000,-500.0,0.00030099,2]
[426575931,1782618642000,-9179.0089697,0.00030041,2]
[426575908,1782618642000,-373.82,0.0003,2]
[426575934,1782618642000,-701.8433459,0.00030046,2]
[426575906,1782618642000,-287.58231804,0.0003,2]
[426575909,1782618642000,-289.27,0.0003,2]
[426575914,1782618642000,-436.57,0.0003,2]
[426575913,1782618642000,-4513.73,0.0003,2]
[426575912,1782618642000,-655.03,0.0003,2]
[426575911,1782618642000,-304.93,0.0003,2]
[426575915,1782618642000,-6441.25,0.0003,2]
[426575923,1782618642000,-392.09,0.0003,2]
[426575924,1782618642000,-1611.1226554,0.0003,2]
[426575917,1782618642000,-15000.0,0.0003,2]
[426575916,1782618642000,-14431.67,0.0003,2]
[426575910,1782618642000,-203.51,0.0003,2]
[426575920,1782618642000,-5622.67783823,0.0003,2]
[426575921,1782618642000,-3558.56195019,0.0003,2]
[426575930,1782618642000,-267.5918561,0.00030041,2]
[426575926,1782618642000,-238.87281533,0.0003,2]
[426575933,1782618642000,-160.61894,0.00030046,2]
[426575927,1782618642000,-206.59125953,0.0003,5]
[426575935,1782618642000,-31360.4612484,0.00030046,2]
[426575928,1782618642000,-16654.99850852,0.0003,2]
[426575925,1782618642000,-2028.34983103,0.0003,2]
[426575919,1782618642000,-6350.44,0.0003,2]
[426575918,1782618642000,-15962.19,0.0003,2]
[426575922,1782618642000,-1500.0,0.0003,2]
[426575932,1782618642000,-16053.765426,0.00030044,2]
[426575977,1782618643000,-500.0,0.00030099,2]
[426575980,1782618643000,-500.0,0.00030099,2]
[426575979,1782618643000,-500.0,0.00030099,2]
[426575991,1782618643000,-500.0,0.00030099,2]
[426575990,1782618643000,-500.0,0.00030099,2]
[426575985,1782618643000,-500.0,0.00030099,2]
[426575982,1782618643000,-500.0,0.00030099,2]
[426575983,1782618643000,-500.0,0.00030099,2]
[426575992,1782618643000,-500.0,0.00030099,2]
[426575981,1782618643000,-500.0,0.00030099,2]
[426575978,1782618643000,-500.0,0.00030099,2]
[426575975,1782618643000,-500.0,0.00030099,2]
[426575974,1782618643000,-500.0,0.00030099,2]
[426575973,1782618643000,-500.0,0.00030099,2]
[426575969,1782618643000,-500.0,0.00030099,2]
[426575966,1782618643000,-500.0,0.00030099,2]
[426575968,1782618643000,-500.0,0.00030099,2]
[426575972,1782618643000,-500.0,0.00030099,2]
[426575964,1782618643000,-500.0,0.00030099,2]
[426575967,1782618643000,-500.0,0.00030099,2]
[426575971,1782618643000,-500.0,0.00030099,2]
[426575970,1782618643000,-500.0,0.00030099,2]
[426575986,1782618643000,-500.0,0.00030099,2]
[426575976,1782618643000,-500.0,0.00030099,2]
[426575984,1782618643000,-500.0,0.00030099,2]
[426575965,1782618643000,-500.0,0.00030099,2]
[426575988,1782618643000,-500.0,0.00030099,2]
[426576015,1782618643000,-124624.05693208,0.000301,7]
[426576016,1782618643000,-612.77575568,0.000301,7]
[426576013,1782618643000,-652.0,0.00029216,2]
[426576014,1782618643000,-309.13165816,0.00029216,2]
[426576012,1782618643000,-1226871.92917677,0.000301,7]
[426576008,1782618643000,-500.0,0.00030099,2]
[426576011,1782618643000,-68565.11112129,0.000301,2]
[426576010,1782618643000,-577.56430409,0.00030099,2]